[Event "GER-ch Youth-ODJM 2022"]
[Site "Willingen"]
[Date "2022.06.07"]
[Round "4.4"]
[White "Reimer, Philip"]
[Black "Wensing, Maximilian"]
[Result "1/2-1/2"]
[ECO "B28"]
[WhiteElo "1977"]
[BlackElo "2063"]
[Annotator "TA"]
[PlyCount "75"]
[EventDate "2022.06.05"]
[EventType "swiss"]
[EventRounds "9"]
[EventCountry "GER"]
[SourceTitle "playchess.com"]
[Source "ChessBase"]
[SourceQuality "1"]
[TimeControl "40/4500+30:900+30"]

{[%evp 9,75,41,35,17,14,5,14,2,11,0,7,-13,-7,-7,0,0,0,11,7,-8,-8,-19,-8,0,0,-3,0,-59,-79,-58,-31,-39,0,0,2,2,2,4,7,-60,-62,-64,-26,-96,-29,-39,-27,-38,-30,-35,-46,-45,-48,-47,-41,-91,-89,-81,-83,-95,-100,-94,-54,-88,-84,-91,-55,-85]} 1. e4 {[%emt 0:00:00]} c5 {[%emt 0:00:00]} 2. Nf3 {[%emt 0:00:00]} a6 {[%emt 0:00:00]} 3. c3 {[%emt 0:00:00]} d5 {[%emt 0:00:00]} 4. exd5 {[%emt 0:00:00]} Nf6 {[%emt 0:00:00]} 5. d4 {[%emt 0:00:00]} Qxd5 6. dxc5 {[%emt 0:00:00] B28: Sicilian: 2 Nf3 a6 (O'Kelly Variation).} Qxc5 {[%emt 0:00:00]} 7. Be3 {[%emt 0:00:00]} Qc7 {[%emt 0:00:00]} 8. Nbd2 {[%emt 0:00:51] The position is equal.} e6 {[%emt 0:00:41] [#]} 9. Bd3 $146 {[%emt 0:15:55]} ({Predecessor:} 9. Qb3 Nbd7 10. a4 Bc5 11. Nc4 Bxe3 12. Nxe3 b6 13. Qb4 Qc5 14. Qxc5 Nxc5 15. Nc4 {1-0 (42) Sorensen,T (2124)-Madsen,M (2108) Fredericia 2017}) 9... Be7 {[%emt 0:10:13]} 10. a4 {[%emt 0:00:18]} Nd5 {[%emt 0:07:53]} 11. Qe2 {[%emt 0:07:27]} Nxe3 {[%emt 0:03:22]} 12. Qxe3 {[%emt 0:00:30]} Nd7 {[%emt 0:01:49]} 13. O-O {[%emt 0:00:49]} Nf6 {[%emt 0:12:46]} 14. a5 {[%emt 0:05:37]} O-O {[%emt 0:01:47]} 15. Nc4 {[%emt 0:01:16]} (15. Ne5 {is interesting.} Rd8 16. Ndc4 Nd5 17. Qh3) 15... Bd7 {[%emt 0:01:09]} 16. Nb6 {[%emt 0:04:13]} Rad8 {[%emt 0:00:16]} 17. b4 {[%emt 0:06:14] Prevents Bc5.} Bd6 {[%emt 0:04:21]} 18. Rfd1 {[%emt 0:09:12]} (18. g3 $1 $11) 18... Bf4 $15 {[%emt 0:02:54]} 19. Qc5 {[%emt 0:18:00]} Qxc5 {[%emt 0:09:28]} 20. bxc5 {[%emt 0:00:02]} Bc6 {[%emt 0:00:11]} 21. Nd4 {[%emt 0:00:18]} Be4 {[%emt 0:00:06]} 22. c6 {[%emt 0:08:35]} Bxd3 {[%emt 0:05:30]} 23. Rxd3 {[%emt 0:00:06]} bxc6 {[%emt 0:00:06] Hoping for ...c5.} 24. Rf3 {[%emt 0:00:06]} (24. Rad1 $11) 24... Bc7 {[%emt 0:00:11]} 25. Nxc6 {[%emt 0:00:23]} Rd6 {[%emt 0:00:53]} (25... Bxb6 $5 26. axb6 Rd6 $15) 26. Ne7+ {[%emt 0:00:42] Pair of Knights!} Kh8 {[%emt 0:00:07]} 27. Nc4 $1 {[%emt 0:00:14]} Rd7 {[%emt 0:00:42]} 28. Nc6 {[%emt 0:00:11]} Rd5 {[%emt 0:05:38]} 29. Nb4 {[%emt 0:03:30][%csl LRa6,LRd5]} Rc5 $36 {[%emt 0:00:06][%mdl 2048] Black fights for an advantage.} 30. Nb6 {[%emt 0:00:30]} Bxb6 {[%emt 0:00:49]} 31. axb6 {[%emt 0:00:29] [#] Black must now prevent c4.} a5 {[%emt 0:00:06]} 32. b7 {[%emt 0:01:22]} Rb5 $17 {[%emt 0:00:05]} (32... axb4 $2 33. Ra8 Rg8 34. Rxg8+ Nxg8 35. b8=Q $18) 33. Nc6 {[%emt 0:01:19]} Rxb7 {[%emt 0:00:07]} 34. Kf1 {[%emt 0:00:21]} Rc8 {[%emt 0:00:22]} 35. Nxa5 {[%emt 0:00:57]} Rb2 {[%emt 0:00:35]} 36. c4 {[%emt 0:01:42]} h5 {[%emt 0:00:26]} 37. Rfa3 {[%emt 0:01:05]} Rc5 {[%emt 0:01:49]} 38. R3a2 {[%emt 0:00:49] Weighted Error Value: White=0.16 (very precise) /Black=0.06 (flawless)} 1/2-1/2

[Event "GER-ch Youth-ODJM 2022"]
[Site "Willingen"]
[Date "2022.06.07"]
[Round "4.5"]
[White "Köhler, Lukas"]
[Black "Nied, Pascal"]
[Result "1/2-1/2"]
[ECO "A05"]
[WhiteElo "2099"]
[BlackElo "2008"]
[Annotator "TA"]
[PlyCount "104"]
[EventDate "2022.06.05"]
[EventType "swiss"]
[EventRounds "9"]
[EventCountry "GER"]
[SourceTitle "playchess.com"]
[Source "ChessBase"]
[SourceQuality "1"]
[TimeControl "40/4500+30:900+30"]

{[%evp 24,104,0,0,0,0,0,0,0,0,0,0,0,-19,0,-2,-8,-12,-11,-4,0,-22,-2,-44,0,-37,18,-199,-204,-192,-176,-216,-204,-214,-210,-210,-208,-208,-194,-179,-121,-129,-125,-117,-117,-120,-95,-94,-82,-89,0,0,-4,-5,0,0,0,0,0,0,0,0,0,0,0,0,0,0,0,0,0,0,0,0,0,-43,-43,-50,0,0,0,-52,0]} 1. Nf3 {[%emt 0:00:00]} Nf6 {[%emt 0:00:00]} 2. b3 {[%emt 0:00:00]} d5 {[%emt 0:00:00]} 3. Bb2 {[%emt 0:00:00]} e6 {[%emt 0:00:00]} 4. e3 {[%emt 0:00:00]} Bd6 {[%emt 0:00:00]} 5. c4 {[%emt 0:00:00]} O-O {[%emt 0:00:00]} 6. Nc3 {[%emt 0:00:00]} c6 {[%emt 0:00:10]} 7. d4 {[%emt 0:00:00]} Nbd7 {[%emt 0:01:00]} 8. Qc2 {[%emt 0:10:54]} Re8 {[%emt 0:07:09]} 9. Be2 {[%emt 0:13:20]} b6 {[%emt 0:02:40]} 10. O-O {[%emt 0:03:49]} Bb7 {[%emt 0:01:12]} 11. e4 {[%emt 0:08:26]} dxe4 {[%emt 0:02:55]} 12. Nxe4 {[%emt 0:00:08]} Nxe4 {[%emt 0:00:30]} 13. Qxe4 {[%emt 0:00:07]} Nf6 {[%emt 0:04:30] D45: Semi-Slav: 5 e3.} 14. Qh4 {[%emt 0:01:39]} c5 {[%emt 0:02:42]} 15. dxc5 {[%emt 0:04:47]} Bxc5 {[%emt 0:02:04] The position is equal.} 16. Rad1 {[%emt 0:03:07]} Qe7 {[%emt 0:01:08]} 17. Ne5 {[%emt 0:02:48]} Rad8 {[%emt 0:05:12]} 18. Nd3 {[%emt 0:12:55] [#]} Ne4 $146 {[%emt 0:10:23]} ({Predecessor:} 18... Bd6 19. Ne5 Qc7 20. Nf3 e5 21. Nd2 Bc5 22. a3 Bd4 23. Bxd4 Rxd4 24. Qg3 Qe7 {½-½ (45) Gretarsson,H (2513)-Rasmussen,K (2437) Rethymno 2003}) 19. Qxe7 {[%emt 0:03:34]} Bxe7 {[%emt 0:00:15]} 20. f3 {[%emt 0:01:32]} Nd6 {[%emt 0:11:37]} 21. g4 {[%emt 0:09:42]} f6 {[%emt 0:13:06]} 22. Ba3 {[%emt 0:02:31]} Kf7 {[%emt 0:01:04]} 23. Rfe1 {[%emt 0:00:50]} Bf8 {[%emt 0:07:10]} 24. Rc1 {[%emt 0:01:40] [#]} a5 {[%emt 0:02:41]} (24... Nb5 $1 $15 25. Bxf8 (25. cxb5 Bxa3 26. Rc4 Bd6 $17) 25... Nd4) 25. Kf2 $2 {[%emt 0:01:31] [#]} (25. c5 $11 {and White has nothing to worry.} Nc8 26. f4 (26. c6 Bxa3 27. cxb7 Nd6 $11)) 25... Ne4+ $1 $19 {[%emt 0:02:50][%mdl 512]} 26. fxe4 {[%emt 0:00:09] Black must now prevent Bxf8.} Bxa3 {[%emt 0:00:03]} 27. Rcd1 {[%emt 0:00:47]} Bxe4 {[%emt 0:00:18]} 28. Ke3 {[%emt 0:00:59]} Bb7 {[%emt 0:02:19] A strong pair of Bishops.} 29. Bf3 {[%emt 0:00:52]} Bxf3 {[%emt 0:01:12]} 30. Kxf3 {[%emt 0:00:03]} Rd4 {[%emt 0:01:11]} 31. Nf4 {[%emt 0:01:06]} Bc5 {[%emt 0:02:48]} (31... Rd6 $19 32. Rxd6 Bxd6) 32. Rxd4 $17 {[%emt 0:01:38]} Bxd4 {[%emt 0:00:02][%mdl 4096] Endgame KRB-KRN} 33. Rd1 {[%emt 0:00:14]} e5 {[%emt 0:01:44]} 34. Nd5 {[%emt 0:01:07]} Bc5 {[%emt 0:01:50]} 35. Ke4 {[%emt 0:00:38]} Rd8 {[%emt 0:00:30]} 36. h4 {[%emt 0:01:07]} h6 {[%emt 0:00:27] Against g5} ({Better is} 36... Rd7 $17 {Hoping for ...Ke6.} 37. Rf1 Ke6) 37. h5 $11 {[%emt 0:00:29]} Rd6 {[%emt 0:00:44]} 38. Kf5 {[%emt 0:00:41]} Bd4 {[%emt 0:00:30]} 39. Nc3 {[%emt 0:00:43]} Bc5 {[%emt 0:00:24]} 40. Rd5 {[%emt 0:01:05]} Bb4 {[%emt 0:00:36]} 41. Rxd6 {[%emt 0:00:00]} Bxd6 {[%emt 0:00:00] KB-KN} 42. Ne4 {[%emt 0:00:00]} Bb4 {[%emt 0:00:00]} 43. Nf2 {[%emt 0:00:00]} Bd2 {[%emt 0:00:00]} 44. Ne4 {[%emt 0:00:00]} Be3 {[%emt 0:00:00]} 45. Nc3 {[%emt 0:00:00]} Bd4 {[%emt 0:00:00]} 46. Ne4 {[%emt 0:00:00]} Bc5 {[%emt 0:00:00]} 47. Nc3 {[%emt 0:00:00]} Be3 {[%emt 0:00:00]} 48. Ne4 {[%emt 0:00:00]} Ke7 {[%emt 0:00:00]} 49. a4 {[%emt 0:00:00]} Kd7 {[%emt 0:05:34]} 50. Nc3 {[%emt 0:00:00]} Kc6 {[%emt 0:03:08]} 51. Ne4 $1 {[%emt 0:00:00]} Kd7 {[%emt 0:04:52]} 52. Nc3 $1 {[%emt 0:00:00]} Kc6 {[%emt 0:00:09] Black had all chances to win.  Weighted Error Value: White=0.15 (very precise) /Black=0.15 (very precise)} ({Black should play} 52... Bd2 $1 $15 53. Ne4 Be1) 1/2-1/2

[Event "GER-ch Youth-ODJM 2022"]
[Site "Willingen"]
[Date "2022.06.07"]
[Round "4.6"]
[White "Koll, Linus"]
[Black "Schimnatkowski, Lukas"]
[Result "1/2-1/2"]
[ECO "C50"]
[WhiteElo "1989"]
[BlackElo "2206"]
[Annotator "TA"]
[PlyCount "93"]
[EventDate "2022.06.05"]
[EventType "swiss"]
[EventRounds "9"]
[EventCountry "GER"]
[SourceTitle "playchess.com"]
[Source "ChessBase"]
[SourceQuality "1"]
[TimeControl "40/4500+30:900+30"]

{[%evp 12,93,0,0,16,22,15,16,62,15,27,16,18,9,41,10,18,0,0,0,0,0,36,26,30,20,30,25,26,35,41,25,25,27,26,13,16,11,10,8,14,0,7,0,0,0,0,0,0,-8,-8,-14,-8,-4,17,18,18,0,22,0,0,0,0,0,0,0,0,-8,-8,-8,-8,-8,-8,-8,-8,-8,-8,-8,-8,-8,-8,-8,-8,-8]} 1. e4 {[%emt 0:00:00]} e5 {[%emt 0:00:00]} 2. Nf3 {[%emt 0:00:00]} Nc6 {[%emt 0:00:00]} 3. Bc4 {[%emt 0:00:00]} Bc5 {[%emt 0:00:00]} 4. O-O {[%emt 0:00:00]} Nf6 {[%emt 0:00:00]} 5. d3 {[%emt 0:00:00]} O-O {[%emt 0:00:00]} 6. Be3 {[%emt 0:00:00]} Bxe3 {[%emt 0:00:00]} 7. fxe3 {[%emt 0:00:00]} d5 {[%emt 0:00:00] C50: Hungarian Defence and Giuoco Pianissimo.} 8. exd5 {[%emt 0:00:00]} Nxd5 {[%emt 0:00:00]} 9. Qe1 {[%emt 0:00:00]} Qd6 {[%emt 0:09:04]} (9... Be6 $11) 10. Nc3 {[%emt 0:00:43]} (10. Ng5 $14) 10... Nxc3 $11 {[%emt 0:10:05]} 11. Qxc3 {[%emt 0:00:19]} Be6 {[%emt 0:00:23] [#]} 12. Rf2 $146 {[%emt 0:16:50]} ({Predecessor:} 12. Rae1 Rad8 13. Bxe6 Qxe6 14. a3 {½-½ (14) Koval,H-Struhar,J (2034) ICCF email 2009}) 12... Rad8 {[%emt 0:06:50]} 13. Raf1 {[%emt 0:03:14]} (13. Ng5 {is more complex.} Bxc4 14. Qxc4 Qd5 15. Qg4) 13... f6 {[%emt 0:08:15] Against Ng5} 14. d4 {[%emt 0:18:08]} Bxc4 {[%emt 0:02:58]} 15. Qxc4+ {[%emt 0:00:04]} Kh8 {[%emt 0:00:14][%cal Re5d4]} 16. c3 {[%emt 0:02:33]} g6 {[%emt 0:06:22]} 17. Qb5 {[%emt 0:06:12]} exd4 {[%emt 0:14:14]} 18. exd4 {[%emt 0:00:32]} b6 {[%emt 0:01:35]} 19. Re2 {[%emt 0:06:05]} Qd5 {[%emt 0:01:22]} 20. Qxd5 {[%emt 0:02:06]} Rxd5 {[%emt 0:00:08]} 21. Re6 {[%emt 0:00:39]} Nd8 {[%emt 0:01:14]} 22. Re7 {[%emt 0:04:47]} Rf7 {[%emt 0:00:20]} 23. Rxf7 {[%emt 0:02:46]} Nxf7 {[%emt 0:00:29][%mdl 4096] Endgame KRN-KRN. The position is equal.} 24. Re1 {[%emt 0:00:13]} Rd7 {[%emt 0:00:51] Against Re7} 25. Kf2 {[%emt 0:02:50]} Kg7 {[%emt 0:02:28]} 26. Ke3 {[%emt 0:00:20]} h5 {[%emt 0:03:00]} 27. c4 {[%emt 0:01:14]} Nd6 {[%emt 0:00:37]} 28. Kd3 {[%emt 0:00:46]} Nf5 {[%emt 0:00:37]} 29. Kc3 {[%emt 0:01:19]} c6 {[%emt 0:02:32] Prevents d5.} 30. h4 {[%emt 0:04:20]} Kf7 {[%emt 0:01:59]} 31. b4 {[%emt 0:05:30]} a6 {[%emt 0:03:14]} 32. a4 {[%emt 0:00:53]} Ne7 {[%emt 0:02:10]} 33. Rb1 {[%emt 0:01:30]} b5 {[%emt 0:03:23]} 34. axb5 {[%emt 0:00:20]} axb5 {[%emt 0:00:08]} 35. Ra1 {[%emt 0:00:13]} (35. d5 $5) 35... bxc4 {[%emt 0:00:51]} 36. Kxc4 {[%emt 0:00:30]} Ke6 {[%emt 0:01:20]} 37. Nd2 {[%emt 0:02:10]} Nf5 {[%emt 0:04:23][%csl LRd4,LRh4]} 38. Nb3 {[%emt 0:00:35] [#] Black must now prevent Nc5+.} Kd6 {[%emt 0:00:13]} 39. Ra6 {[%emt 0:02:01] And now b5 would win.} Ne3+ {[%emt 0:00:51]} (39... Nxh4 $2 40. Nc5 Rc7 41. b5 Nxg2 42. b6 Ne3+ 43. Kd3 $18) 40. Kd3 {[%emt 0:00:28]} Nd5 {[%emt 0:00:39]} ({Don't play} 40... Nxg2 41. b5 Kd5 42. b6 Nf4+ 43. Ke3 $16) 41. Kc4 {[%emt 0:15:42]} Rb7 {[%emt 0:00:00] Inhibits b5.} 42. Rxc6+ $1 {[%emt 0:00:00]} Kxc6 {[%emt 0:00:00]} 43. Na5+ {[%emt 0:00:00]} Kc7 {[%emt 0:00:34]} 44. Nxb7 {[%emt 0:00:00]} Nb6+ {[%emt 0:00:12]} 45. Kc5 {[%emt 0:00:00] [#] Hoping for Nd6.} Kxb7 {[%emt 0:08:55]} 46. Kd6 {[%emt 0:00:00]} g5 {[%emt 0:03:48]} 47. Ke6 {[%emt 0:00:00] Weighted Error Value: White=0.07 (flawless) /Black=0.05 (flawless)} 1/2-1/2

[Event "GER-ch Youth-ODJM 2022"]
[Site "Willingen"]
[Date "2022.06.07"]
[Round "4.7"]
[White "Herter, Arne"]
[Black "Terhuven, Patrick"]
[Result "1-0"]
[ECO "B35"]
[WhiteElo "1943"]
[BlackElo "2162"]
[Annotator "TA"]
[PlyCount "151"]
[EventDate "2022.06.05"]
[EventType "swiss"]
[EventRounds "9"]
[EventCountry "GER"]
[SourceTitle "playchess.com"]
[Source "ChessBase"]
[SourceQuality "1"]
[TimeControl "40/4500+30:900+30"]

{[%evp 14,151,12,23,24,20,52,50,33,30,19,-49,-33,-72,-51,-35,-25,-26,-32,-19,-21,-29,6,0,0,0,0,0,0,-23,-15,-25,-14,-24,0,0,0,0,0,-22,-26,-35,-38,-45,-20,-25,-10,-30,-24,-43,-24,-21,-25,-29,-17,-18,-18,-151,0,0,0,0,0,-3,-3,0,0,-35,-40,-35,-39,-36,-35,-64,-70,-40,-72,-54,-16,-16,0,0,63,63,208,199,199,191,579,568,642,595,635,129,129,129,129,129,178,130,372,372,498,498,470,359,352,337,1718,1054,5895,5872,29988,4948,4281,2095,1595,509,29991,4929,29988,1050,29985,29986,29989,4922,29990,4914,4914,4914,4914,4914,29987,29985,29992,29993,29993,29994,29994,404]} 1. e4 {[%emt 0:00:00]} c5 {[%emt 0:00:00]} 2. Nf3 {[%emt 0:00:00]} Nc6 {[%emt 0:00:00]} 3. d4 {[%emt 0:00:00]} cxd4 {[%emt 0:00:00]} 4. Nxd4 {[%emt 0:00:00]} g6 {[%emt 0:00:00]} 5. Nc3 {[%emt 0:00:00]} Bg7 {[%emt 0:00:00]} 6. Be3 {[%emt 0:00:00]} Nf6 {[%emt 0:00:00]} 7. Bc4 {[%emt 0:00:00]} O-O {[%emt 0:00:00]} 8. Bb3 {[%emt 0:00:00]} Re8 {[%emt 0:00:00] B35: Sicilian: Accelerated Dragon with 5 Nc3: main line.} 9. f3 {[%emt 0:00:00]} d5 {[%emt 0:00:00]} 10. exd5 {[%emt 0:00:00]} Nb4 {[%emt 0:00:00] White is slightly better.} 11. Nde2 {[%emt 0:12:28]} e6 {[%emt 0:00:00][%cal Rb4d5]} 12. dxe6 {[%emt 0:09:13]} (12. Bd4 $11) 12... Bxe6 $15 {[%emt 0:00:00] [#]} 13. Bc5 $146 {[%emt 0:07:52]} ({Predecessor:} 13. Bd2 Bxb3 14. axb3 Qb6 15. Na4 Qb5 16. Bxb4 Qxb4+ 17. c3 Qe7 18. c4 Nh5 19. Nac3 Bxc3+ 20. bxc3 Nf4 21. Ra2 Rad8 22. Qc2 Nxe2 {0-1 (22) Schlegel,I (2027)-Peycheva,G (2255) Chess.com INT 2020}) 13... Qa5 {[%emt 0:02:01]} 14. Bxb4 {[%emt 0:07:19]} Qxb4 {[%emt 0:00:18]} 15. O-O $1 {[%emt 0:01:55]} Rad8 {[%emt 0:02:02]} 16. Qe1 {[%emt 0:13:01]} Bc4 {[%emt 0:31:42]} 17. Rd1 {[%emt 0:15:43]} b5 {[%emt 0:08:25]} 18. Rxd8 {[%emt 0:04:29]} Rxd8 {[%emt 0:00:03]} 19. a3 {[%emt 0:00:59]} Qe7 {[%emt 0:06:57]} 20. Bxc4 {[%emt 0:02:08]} bxc4 {[%emt 0:00:02]} 21. Ng3 {[%emt 0:02:43] Pair of Knights!} Qb7 {[%emt 0:01:00][%mdl 1024] Black has compensation.} 22. Nd1 {[%emt 0:05:42]} Nd5 {[%emt 0:02:01]} 23. c3 {[%emt 0:01:46]} Qb3 {[%emt 0:05:33]} (23... Nf4 {with more complications.} 24. Ne4 Nd3 25. Qh4 Qb6+) 24. Ne4 {[%emt 0:00:38]} Nf4 {[%emt 0:01:13]} 25. Nef2 {[%emt 0:00:47]} Qc2 {[%emt 0:11:20]} 26. Qe4 {[%emt 0:00:50]} Qxe4 {[%emt 0:00:39]} 27. Nxe4 {[%emt 0:00:12]} f5 {[%emt 0:00:18]} 28. Nef2 {[%emt 0:00:54][%cal Be4f2,Bf2h3,Bh3g1,Bg1f3][%mdl 32]} Re8 {[%emt 0:03:42] Prevents Ne3.} 29. g3 {[%emt 0:00:35]} Nd5 {[%emt 0:00:59]} 30. Nh3 {[%emt 0:00:32]} Bf8 {[%emt 0:00:50]} 31. f4 {[%emt 0:00:33]} Re2 {[%emt 0:01:18] Threatening ...Bc5+.} 32. Kh1 $1 {[%emt 0:00:35]} Bc5 {[%emt 0:00:29]} 33. Ng1 $1 {[%emt 0:00:22]} Rc2 {[%emt 0:03:34]} 34. Nf3 {[%emt 0:00:15]} Nf6 {[%emt 0:04:23]} 35. a4 {[%emt 0:00:48] [#]} (35. Nd4 $1 $11 Bxd4 36. cxd4) 35... Re2 $2 {[%emt 0:01:48]} (35... Ng4 $1 $17 {aiming for ...Rc1.} 36. Re1 Rc1) 36. Re1 $11 {[%emt 0:00:26]} Rc2 {[%emt 0:00:33]} 37. a5 {[%emt 0:00:33]} Ne4 {[%emt 0:01:20]} 38. Ng5 {[%emt 0:00:25]} Nxg5 {[%emt 0:01:01]} 39. fxg5 {[%emt 0:00:02][%mdl 4096] Endgame KRB-KRN} Kf7 {[%emt 0:00:49]} 40. Re5 {[%emt 0:01:04]} Be7 {[%emt 0:00:33]} 41. Ne3 {[%emt 0:00:00][%csl LRc2,LRc4]} Rxb2 {[%emt 0:00:00]} 42. Nxc4 {[%emt 0:00:00]} Rc2 {[%emt 0:00:00] Threatens to win with ...Rc1+.} 43. Re3 {[%emt 0:00:00]} Bxg5 {[%emt 0:00:00]} 44. Nd6+ {[%emt 0:00:00]} Kg7 {[%emt 0:00:00]} 45. Rd3 {[%emt 0:00:44]} Bd2 {[%emt 0:00:00]} 46. a6 {[%emt 0:03:06][%cal Ba5a6,Ba6a7][%mdl 32]} Bxc3 {[%emt 0:00:00]} 47. Nb5 {[%emt 0:00:56][%csl LRa7,LRc3]} Be5 {[%emt 0:00:36]} (47... Bb4 $11) 48. Rd7+ $14 {[%emt 0:04:48]} Kf6 {[%emt 0:01:21]} (48... Kh6 $1 $14) 49. Rxa7 $18 {[%emt 0:01:46]} Ra2 {[%emt 0:11:22] [#]} 50. Ra8 $1 {[%emt 0:01:53] Strongly threatening a7.} Kg5 $2 {[%emt 0:03:06]} (50... Bb8 {is tougher.} 51. Rxb8 Rxa6) 51. a7 {[%emt 0:05:37]} Kg4 {[%emt 0:01:15] ( -> ...Kf3)} 52. Re8 {[%emt 0:00:43]} Kh3 {[%emt 0:01:20][%cal Ra2a1]} 53. Kg1 $2 {[%emt 0:00:23]} (53. a8=Q $18 {and the rest is easy.} Rxa8 54. Rxa8) 53... Bd4+ $16 {[%emt 0:01:28]} 54. Nxd4 {[%emt 0:00:14]} Rxa7 {[%emt 0:00:22] KRN-KR} 55. Nf3 {[%emt 0:01:15]} Kg4 {[%emt 0:01:08]} (55... f4 $16) 56. Kf2 {[%emt 0:01:08]} (56. Ne5+ $18 Kg5 57. h4+ Kf6 58. Kf2) 56... h5 $2 {[%emt 0:00:54] Loses the game.} (56... f4 $16) 57. Ne5+ $18 {[%emt 0:00:42]} Kh3 {[%emt 0:00:04]} 58. Nxg6 {[%emt 0:00:27] White threatens Nf4+ and mate.} Kxh2 {[%emt 0:00:24]} 59. Re3 {[%emt 0:00:49]} Ra2+ {[%emt 0:01:13]} 60. Kf3 {[%emt 0:00:10]} Ra1 $2 {[%emt 0:00:26]} (60... Kg1 61. Rc3 Rf2+ 62. Ke3 Rf1) 61. Re2+ {[%emt 0:00:15]} Kh1 {[%emt 0:00:20]} 62. Nh4 {[%emt 0:00:54]} Rf1+ {[%emt 0:00:36]} 63. Rf2 {[%emt 0:00:11]} (63. Ke3 $142 Kg1 64. Nf3+ Rxf3+ 65. Kxf3 Kf1 66. Re5 f4 67. g4 hxg4+ 68. Kxg4) 63... Ra1 {[%emt 0:00:33]} 64. Nxf5 {[%emt 0:00:23]} (64. Rd2 $142 Ra3+ 65. Kf4) 64... Ra4 {[%emt 0:00:28]} 65. Nh4 {[%emt 0:00:55]} (65. Re2 $142 {Re1+ is the strong threat.} Ra8 66. Re5) 65... Rg4 {[%emt 0:00:15]} (65... Kg1 $18 66. Rg2+ Kf1) 66. Re2 {[%emt 0:00:37]} (66. Ke3 $142 Ra4 67. Nf3 Ra3+ 68. Ke4 Rxf3 69. Kxf3 Kg1 70. Ra2 Kh1 71. Ra4 h4 72. Rxh4+ Kg1 73. Rh7 Kf1 74. Rh1#) 66... Kg1 {[%emt 0:00:22]} 67. Re1+ {[%emt 0:00:33]} Kh2 {[%emt 0:00:02]} 68. Kf2 {[%emt 0:00:25]} Rg8 {[%emt 0:01:27]} 69. Nf3+ {[%emt 0:00:08]} Kh3 {[%emt 0:00:04]} 70. Rh1+ {[%emt 0:00:04]} (70. Re4 $142 Rg4 71. Ng1+ Kh2 72. Re5 h4 73. Rh5 Re4 74. Rxh4+ Rxh4 75. gxh4) 70... Kg4 {[%emt 0:00:03]} 71. Rh4+ {[%emt 0:00:06]} Kf5 {[%emt 0:00:13]} 72. Rxh5+ {[%emt 0:00:03]} Kg4 {[%emt 0:00:13]} 73. Ra5 {[%emt 0:00:25] White mates.} Kh3 {[%emt 0:00:33]} 74. Ra4 {[%emt 0:00:20][%csl Gf3,Gg3][%cal Ra4h4]} Rh8 {[%emt 0:00:22]} 75. Ng1+ {[%emt 0:00:16]} Kh2 {[%emt 0:00:12]} 76. Rh4+ {[%emt 0:00:05] Weighted Error Value: White=0.22 (precise) /Black=0.30} 1-0

[Event "GER-ch Youth-ODJM 2022"]
[Site "Willingen"]
[Date "2022.06.07"]
[Round "4.8"]
[White "Schilay, Maria"]
[Black "Masur, Maxim"]
[Result "1-0"]
[ECO "C47"]
[WhiteElo "1568"]
[BlackElo "1428"]
[Annotator "NA RC COMBH"]
[PlyCount "61"]
[EventDate "2022.06.05"]
[EventType "swiss"]
[EventRounds "9"]
[EventCountry "GER"]
[SourceTitle "playchess.com"]
[Source "ChessBase"]
[SourceQuality "1"]
[TimeControl "40/4500+30:900+30"]

1. e4 {[%emt 0:00:00]} e5 {[%emt 0:00:00]} 2. Nf3 {[%emt 0:00:00]} Nc6 {[%emt 0:00:00]} 3. Nc3 {[%emt 0:00:00]} Nf6 {[%emt 0:00:00]} 4. a3 {[%emt 0:00:00]} d6 {[%emt 0:00:00]} 5. h3 {[%emt 0:00:00]} Be7 {[%emt 0:00:00]} 6. d4 {[%emt 0:00:00]} exd4 {[%emt 0:00:00]} 7. Nxd4 {[%emt 0:00:00]} O-O {[%emt 0:00:00]} 8. Be3 {[%emt 0:00:00]} Re8 {[%emt 0:00:00]} 9. Bc4 {[%emt 0:00:00]} Ne5 {[%emt 0:00:00]} 10. Ba2 {[%emt 0:00:00]} Bf8 {[%emt 0:00:00]} 11. f4 {[%emt 0:00:00]} Ng6 {[%emt 0:00:00]} 12. Qd3 {[%emt 0:00:00]} c6 {[%emt 0:00:00]} 13. O-O-O {[%emt 0:00:00]} Qc7 {[%emt 0:00:00]} 14. g4 {[%emt 0:00:59]} b5 {[%emt 0:00:00]} 15. g5 {[%emt 0:06:00]} Nd7 {[%emt 0:00:00]} 16. Nxc6 {[%emt 0:05:33]} Bb7 {[%emt 0:00:00]} 17. Nb4 {[%emt 0:04:09]} Nc5 {[%emt 0:01:02]} 18. Bxc5 {[%emt 0:18:29]} dxc5 {[%emt 0:00:20]} 19. Nbd5 {[%emt 0:00:19]} Bxd5 {[%emt 0:00:25]} 20. Nxd5 {[%emt 0:01:31]} Qb7 {[%emt 0:01:06]} 21. h4 {[%emt 0:06:01]} c4 {[%emt 0:00:37]} 22. Qf3 {[%emt 0:04:52]} b4 {[%emt 0:02:39]} 23. axb4 {[%emt 0:01:49]} Bxb4 {[%emt 0:00:20]} 24. Bxc4 {[%emt 0:06:02]} Rab8 {[%emt 0:00:59]} 25. h5 {[%emt 0:06:55]} Qc6 {[%emt 0:06:25]} 26. hxg6 {[%emt 0:06:37]} Qxc4 {[%emt 0:00:19]} 27. gxf7+ {[%emt 0:00:44]} Kxf7 {[%emt 0:00:13]} 28. Qh5+ {[%emt 0:01:01]} Kf8 {[%emt 0:00:25]} 29. g6 {[%emt 0:05:19]} Rbc8 {[%emt 0:02:00]} 30. Qf5+ {[%emt 0:00:31]} Kg8 {[%emt 0:00:22]} 31. Qf7+ {[%emt 0:00:12]} 1-0